Cogmind - Beta 11.1 @@@ ROGUE MODE // 2022.05.04 @ 17:28:47 Player: Azken Zutik Result: Destroyed by Y-54 Guardian with Flak Gun Performance ------------- Evolutions (4) 2000 Regions Visited (8) 1600 Robots Destroyed (0) 0 Value Destroyed (0) 0 Prototype IDs (0) 0 Alien Tech Used (0) 0 Bonus (1525) 1525 TOTAL SCORE: 5125 Bonus ------- Pacifist 1325 Entered Garrisons 200 Cogmind --------- Core Integrity 0/850 Matter 290/300 Energy 98/100 System Corruption 0% Temperature Cool (3) Movement Flying (32) Location -6/Factory Parts ------- > --- POWER (2) -------- (None) > --- PROPULSION (8) --- Surge Thruster > --- UTILITY (3) ------ (None) > --- WEAPON (2) ------- (None) > --- INVENTORY (5) ---- Light Treads Wheel Compact Wheel Improved System Shield Assault Rifle Peak State ------------ > --- POWER ------------ (None) > --- PROPULSION ------- (None) > --- UTILITY ---------- Machine Analyzer Hacking Suite > --- WEAPON ----------- (None) > --- INVENTORY -------- Light Treads Light Treads Wheel Compact Wheel Assault Rifle [Rating: 6] Favorites ----------- Power None Propulsion Light Treads Treads Light Treads Flight Unit Surge Thruster Utility Machine Analyzer Processor Machine Analyzer Hackware Hacking Suite Weapon None Build | -11 -10 -9 -9 -8 -7 -6 -6 -6 ------- Run | Scr Mat Mat Sto Mat Fac Fac Gar Fac Slots Evolved 8 | . . 2 . 2 2 2 . . Power 1 | . . . . 1 . . . . Propulsion 6 | . . 2 . 1 1 2 . . Utility 1 | . . . . . 1 . . . Weapon . | . . . . . . . . . Parts Attached 5 | . . . . 2 . 1 . 2 Power . | . . . . . . . . . Engine . | . . . . . . . . . Core . | . . . . . . . . . Reactor . | . . . . . . . . . Propulsion 3 | . . . . . . 1 . 2 Treads 1 | . . . . . . 1 . . Leg . | . . . . . . . . . Wheel . | . . . . . . . . . Hover . | . . . . . . . . . Flight 2 | . . . . . . . . 2 Utility 2 | . . . . 2 . . . . Device . | . . . . . . . . . Storage . | . . . . . . . . . Processor 1 | . . . . 1 . . . . Hackware 1 | . . . . 1 . . . . Protection . | . . . . . . . . . Artifact . | . . . . . . . . . Weapon . | . . . . . . . . . Energy Gun . | . . . . . . . . . Energy Cannon . | . . . . . . . . . Ballistic Gun . | . . . . . . . . . Ballistic Cannon . | . . . . . . . . . Launcher . | . . . . . . . . . Special Weapon . | . . . . . . . . . Impact Weapon . | . . . . . . . . . Slashing Weapon . | . . . . . . . . . Piercing Weapon . | . . . . . . . . . Special Melee Weapon . | . . . . . . . . . Unidentified Prototypes . | . . . . . . . . . Parts Lost 3 | . . . . 1 . . 1 1 Power . | . . . . . . . . . Propulsion 2 | . . . . . . . 1 1 Utility 1 | . . . . 1 . . . . Weapon . | . . . . . . . . . Highest Loss Streak 1 | . . . . 1 . . 1 1 To Critical Strikes . | . . . . . . . . . Average Slot Usage (%) 6 | . . . . 11 7 11 11 4 Treads 1 | . . . . . . 4 4 . Processor 3 | . . . . 5 7 6 6 3 Hackware 1 | . . . . 5 . . . . Naked Turns 179 | . 26 57 68 14 . . . 14 Heaviest Build . | . . . . . . . . . Greatest Support 20 | 3 3 3 3 3 3 20 20 4 Greatest Overweight (x) . | . . . . . . . . . Average Overweight (x) . | . . . . . . . . . Largest Inventory Capacity 5 | . 5 5 5 5 5 5 5 5 Average Capacity 5 | . 5 5 5 5 5 5 5 5 Most Carried 5 | . 5 5 5 5 5 5 4 5 Average Carried 4 | . 5 5 5 5 5 4 4 4 Final Capacity 5 | 5 5 5 5 5 5 5 5 5 Final Carried 5 | 5 5 5 5 5 5 4 4 5 Class Distribution -------------------- 100% | Mutant Dominant Class ---------------- Mutant | -10/Materials Mutant | -9/Materials Mutant | -9/Storage Mutant | -8/Materials Mutant | -7/Factory Mutant | -6/Factory Mutant | -6/Garrison Mutant | -6/Factory Resources | -11 -10 -9 -9 -8 -7 -6 -6 -6 ----------- Run | Scr Mat Mat Sto Mat Fac Fac Gar Fac Matter Collected 215 | 195 . . . . . . . 20 Remotely . | . . . . . . . . . Salvage Created . | . . . . . . . . . Parts . | . . . . . . . . . Haulers Intercepted . | . . . . . . . . . Recyclers Shooed . | . . . . . . . . . Parts Field Recycled . | . . . . . . . . . Retrieved Matter . | . . . . . . . . . Parts Self-Destructed . | . . . . . . . . . Prevented . | . . . . . . . . . Kills | -11 -10 -9 -9 -8 -7 -6 -6 -6 ------- Run | Scr Mat Mat Sto Mat Fac Fac Gar Fac Combat Hostiles Destroyed . | . . . . . . . . . Classes Destroyed . | . . . . . . . . . Best Kill Streak . | . . . . . . . . . Combat Bots Only . | . . . . . . . . . Max Kills in Single Turn . | . . . . . . . . . Gunslinging . | . . . . . . . . . Exploded . | . . . . . . . . . Melee . | . . . . . . . . . Uniques/NPCs Destroyed . | . . . . . . . . . Combat | -11 -10 -9 -9 -8 -7 -6 -6 -6 -------- Run | Scr Mat Mat Sto Mat Fac Fac Gar Fac Damage Taken 1658 | . 33 43 261 266 . 185 182 688 Core 1439 | . 33 43 261 248 . 105 121 628 Absorbed by Shields . | . . . . . . . . . Core Remaining (%) 72 | 100 86 . 24 54 100 . . . Volleys Fired . | . . . . . . . . . Largest . | . . . . . . . . . Hottest . | . . . . . . . . . Shots Fired . | . . . . . . . . . Gun . | . . . . . . . . . Cannon . | . . . . . . . . . Launcher . | . . . . . . . . . Special . | . . . . . . . . . Kinetic . | . . . . . . . . . Thermal . | . . . . . . . . . Explosive . | . . . . . . . . . Electromagnetic . | . . . . . . . . . Robot Hit Streak . | . . . . . . . . . Robot Miss Streak . | . . . . . . . . . Penetration Max . | . . . . . . . . . Secondary Targets . | . . . . . . . . . Shots Hit Robots . | . . . . . . . . . Core Hits 3 | . . . 2 1 . . . . Critical Kills . | . . . . . . . . . Critical Parts Destroyed . | . . . . . . . . . Critical Strikes . | . . . . . . . . . Melee Attacks . | . . . . . . . . . Impact . | . . . . . . . . . Slashing . | . . . . . . . . . Piercing . | . . . . . . . . . Sneak Attacks . | . . . . . . . . . Combat Hostiles . | . . . . . . . . . Follow-up Attacks . | . . . . . . . . . Damage Inflicted 49 | . . 24 18 7 . . . . Guns . | . . . . . . . . . Cannons . | . . . . . . . . . Explosions . | . . . . . . . . . Melee . | . . . . . . . . . Ramming 49 | . . 24 18 7 . . . . Kinetic . | . . . . . . . . . Thermal . | . . . . . . . . . Explosive . | . . . . . . . . . Electromagnetic . | . . . . . . . . . Impact . | . . . . . . . . . Slashing . | . . . . . . . . . Piercing . | . . . . . . . . . Highest Corruption 3 | . . . 3 . . . . . Average Corruption 2 | . . . 2 . . . . . Corruption Purged . | . . . . . . . . . Corruption Blocked . | . . . . . . . . . Overload Shots . | . . . . . . . . . Overflow Damage . | . . . . . . . . . Projectiles . | . . . . . . . . . Explosions . | . . . . . . . . . Melee . | . . . . . . . . . Knockbacks . | . . . . . . . . . Impact . | . . . . . . . . . Kinetic . | . . . . . . . . . Secondary . | . . . . . . . . . Self-Inflicted Damage 24 | . . 12 9 3 . . . . Shots . | . . . . . . . . . Rammed 8 | . . 2 5 1 . . . . Targets Rammed 8 | . . 2 5 1 . . . . Kicked . | . . . . . . . . . Crushed . | . . . . . . . . . Highest Temperature . | . . . . . . . . . Average Temperature . | . . . . . . . . . Received Heat Transfer 291 | . 18 9 54 117 . . 21 72 Siege Activations . | . . . . . . . . . Robots Corrupted . | . . . . . . . . . Combat Hostiles . | . . . . . . . . . Parts Fried . | . . . . . . . . . Impact Corruptions . | . . . . . . . . . Robots Melted . | . . . . . . . . . Combat Hostiles . | . . . . . . . . . Parts Melted . | . . . . . . . . . Heat Transferred . | . . . . . . . . . Parts Sabotaged . | . . . . . . . . . Parts Stolen . | . . . . . . . . . Parts Stripped . | . . . . . . . . . Power Chain Reactions . | . . . . . . . . . Missiles Intercepted . | . . . . . . . . . Alert | -11 -10 -9 -9 -8 -7 -6 -6 -6 ------- Run | Scr Mat Mat Sto Mat Fac Fac Gar Fac Peak Influence 89 | . 15 35 74 89 54 54 47 38 Initial 47 | . . 5 14 31 39 25 47 18 Average 35 | . 8 14 44 51 42 34 44 27 Maximum Alert Level . | . . . . . . . . . Low Security (%) 100 | . 100 100 100 100 100 100 100 100 Level 1 . | . . . . . . . . . Level 2 . | . . . . . . . . . Level 3 . | . . . . . . . . . Level 4 . | . . . . . . . . . Level 5 . | . . . . . . . . . High Security . | . . . . . . . . . Max Security . | . . . . . . . . . Squads Dispatched 8 | . 1 . 2 2 1 1 . 1 Investigation 4 | . . . 2 1 . 1 . . Extermination . | . . . . . . . . . Reinforcement 4 | . 1 . . 1 1 . . 1 Assault . | . . . . . . . . . Garrison . | . . . . . . . . . Intercept . | . . . . . . . . . Searches Triggered . | . . . . . . . . . Construction Impeded . | . . . . . . . . . Haulers Reinforced . | . . . . . . . . . Active Scanning Responses . | . . . . . . . . . Cargo Convoy Interrupts . | . . . . . . . . . Stealth | -11 -10 -9 -9 -8 -7 -6 -6 -6 --------- Run | Scr Mat Mat Sto Mat Fac Fac Gar Fac Distress Signals 3 | . . . 2 1 . . . . Communications Jammed . | . . . . . . . . . Distress Signals . | . . . . . . . . . Times Spotted 37 | . 3 3 9 7 1 1 7 6 Peak Tracking Total 11 | . 3 3 8 11 1 1 7 5 Tactical Retreats 3 | . . . 1 1 . . . 1 Traps | -11 -10 -9 -9 -8 -7 -6 -6 -6 ------- Run | Scr Mat Mat Sto Mat Fac Fac Gar Fac Traps Triggered 5 | . . . 1 1 . 2 1 . Indirectly . | . . . . . . . . . Trap Hack Attempts . | . . . . . . . . . Triggered . | . . . . . . . . . Disarmed . | . . . . . . . . . Reprogrammed . | . . . . . . . . . Reused . | . . . . . . . . . Traps Extracted . | . . . . . . . . . Installed . | . . . . . . . . . Triggered . | . . . . . . . . . Machines | -11 -10 -9 -9 -8 -7 -6 -6 -6 ---------- Run | Scr Mat Mat Sto Mat Fac Fac Gar Fac Machines Disabled . | . . . . . . . . . Max in Single Turn . | . . . . . . . . . Machines Sabotaged . | . . . . . . . . . Garrisons Compromised . | . . . . . . . . . Overloaded Fab Kills . | . . . . . . . . . Hacking | -11 -10 -9 -9 -8 -7 -6 -6 -6 --------- Run | Scr Mat Mat Sto Mat Fac Fac Gar Fac Machines Accessed 4 | . . . 1 1 . 2 . . Terminals 3 | . . . 1 1 . 1 . . Fabricators . | . . . . . . . . . Repair Stations . | . . . . . . . . . Recycling Units . | . . . . . . . . . Scanalyzers . | . . . . . . . . . Garrison Access 1 | . . . . . . 1 . . Total Hacks 8 | . . . 2 2 . 4 . . Successful 3 | . . . . 1 . 2 . . Failed 5 | . . . 2 1 . 2 . . Catastrophic 2 | . . . 1 1 . . . . Database Lockouts . | . . . . . . . . . Manual 2 | . . . 2 . . . . . Terminals 7 | . . . 2 2 . 3 . . Fabricators . | . . . . . . . . . Repair Stations . | . . . . . . . . . Recycling Units . | . . . . . . . . . Scanalyzers . | . . . . . . . . . Garrison Access 1 | . . . . . . 1 . . Terminal Hacks 2 | . . . . 1 . 1 . . Level Access Points 1 | . . . . 1 . . . . Zone Layout 1 | . . . . . . 1 . . Fabricator Hacks . | . . . . . . . . . Repair Station Hacks . | . . . . . . . . . Recycling Unit Hacks . | . . . . . . . . . Scanalyzer . | . . . . . . . . . Garrison Access Hacks 1 | . . . . . . 1 . . Unlock Access 1 | . . . . . . 1 . . Unauthorized Hacks . | . . . . . . . . . Terminals . | . . . . . . . . . Fabricators . | . . . . . . . . . Repair Stations . | . . . . . . . . . Recycling Units . | . . . . . . . . . Scanalyzers . | . . . . . . . . . Garrison Access . | . . . . . . . . . Data Cores Recovered . | . . . . . . . . . Used . | . . . . . . . . . Hacking Detections 3 | . . . 1 . . 2 . . Full Trace Events 2 | . . . 1 . . 1 . . Feedback Events . | . . . . . . . . . Feedback Blocked . | . . . . . . . . . Robot Schematics Acquired . | . . . . . . . . . Robots Built . | . . . . . . . . . Authchips . | . . . . . . . . . Time . | . . . . . . . . . Total Robot Build Rating . | . . . . . . . . . Part Schematics Acquired . | . . . . . . . . . Parts Built . | . . . . . . . . . Authchips . | . . . . . . . . . Time . | . . . . . . . . . Total Part Build Rating . | . . . . . . . . . Parts Repaired . | . . . . . . . . . Time . | . . . . . . . . . Parts Recycled . | . . . . . . . . . Recycled Matter . | . . . . . . . . . Retrieved Matter . | . . . . . . . . . Retrieved Components . | . . . . . . . . . Parts Scanalyzed . | . . . . . . . . . Part Schematics Acquired . | . . . . . . . . . Parts Damaged . | . . . . . . . . . Bothacking | -11 -10 -9 -9 -8 -7 -6 -6 -6 ------------ Run | Scr Mat Mat Sto Mat Fac Fac Gar Fac Used RIF Installer . | . . . . . . . . . Robots Hacked . | . . . . . . . . . Non-combat . | . . . . . . . . . Combat . | . . . . . . . . . Robot Hacks Applied . | . . . . . . . . . Relay Couplers Released . | . . . . . . . . . Fabnet Peak Effective % . | . . . . . . . . . Robots Rewired . | . . . . . . . . . Allies Hacked . | . . . . . . . . . Hacks Repelled . | . . . . . . . . . Allies | -11 -10 -9 -9 -8 -7 -6 -6 -6 -------- Run | Scr Mat Mat Sto Mat Fac Fac Gar Fac Total Allies . | . . . . . . . . . Largest Group . | . . . . . . . . . Highest-Rated Group . | . . . . . . . . . Highest-Rated Ally . | . . . . . . . . . Total Orders . | . . . . . . . . . Ally Attacks . | . . . . . . . . . Total Damage . | . . . . . . . . . Kills . | . . . . . . . . . Allies Corrupted . | . . . . . . . . . Allies Melted . | . . . . . . . . . Intel | -11 -10 -9 -9 -8 -7 -6 -6 -6 ------- Run | Scr Mat Mat Sto Mat Fac Fac Gar Fac Robot Analysis Total . | . . . . . . . . . Derelict Logs Recovered . | . . . . . . . . . Drone Launches . | . . . . . . . . . Drone Recoveries . | . . . . . . . . . Exploration | -11 -10 -9 -9 -8 -7 -6 -6 -6 ------------- Run | Scr Mat Mat Sto Mat Fac Fac Gar Fac Turns Passed 422 | . 26 57 68 78 22 74 44 53 Spaces Moved 787 | 1 51 111 125 147 44 123 80 105 Core 760 | 1 51 111 125 147 44 119 79 83 Treads 5 | . . . . . . 4 1 . Legs . | . . . . . . . . . Wheels . | . . . . . . . . . Hover . | . . . . . . . . . Flight 22 | . . . . . . . . 22 Fastest Speed 32 | 50 50 50 50 50 50 50 50 32 Average Speed 50 | 50 50 50 50 50 50 53 51 46 Slowest Speed 160 | 50 50 50 50 50 50 160 160 50 Overloaded Moves 22 | . . . . . . . . 22 Propulsion Burnouts . | . . . . . . . . . Robots Hopped . | . . . . . . . . . Cave-ins Triggered . | . . . . . . . . . Exploration Rate (%) 14 | 2 17 14 35 21 1 4 28 5 Regions Visited 8 Branch Regions 1 Pre-discovered Areas . | . . . . . . . . . Known Exits Taken 2 | . . . . 1 . 1 . . Unknown Exits Taken 5 | 1 1 1 1 . 1 . . . Scrap Searched . | . . . . . . . . . Spaces Dug . | . . . . . . . . . Terrain Destroyed . | . . . . . . . . . Melee . | . . . . . . . . . Projectile . | . . . . . . . . . AOE . | . . . . . . . . . Terrain Rammed . | . . . . . . . . . Walls Destroyed . | . . . . . . . . . Machines Disabled . | . . . . . . . . . Actions | -11 -10 -9 -9 -8 -7 -6 -6 -6 --------- Run | Scr Mat Mat Sto Mat Fac Fac Gar Fac Total 804 | . 50 112 129 149 43 131 82 108 Wait . | . . . . . . . . . Move 781 | . 50 111 124 146 43 123 79 105 Hop . | . . . . . . . . . Pick Up 1 | . . . . . . . . 1 Fast Attach 4 | . . . . 2 . . . 2 Attach 1 | . . . . . . 1 . . Detach . | . . . . . . . . . Swap . | . . . . . . . . . Drop . | . . . . . . . . . Fire . | . . . . . . . . . Melee . | . . . . . . . . . Ram 7 | . . 1 5 1 . . . . Kick . | . . . . . . . . . Crush . | . . . . . . . . . Escape Stasis 10 | . . . . . . 7 3 . Rewire . | . . . . . . . . . Trap . | . . . . . . . . . Miscellaneous . | . . . . . . . . . Route ------- -11/Scrapyard -10/Materials -9/Materials -9/Storage -8/Materials (discovered 3 exits: *Fac x3) -7/Factory -6/Factory -6/Garrison -6/Factory History --------- Turn | Location | Event 1 | -11/Scrapyard | Released all parts (6) 1 | -11/Scrapyard | Discovered new exit (range 0) 1 | -11/Scrapyard | Entered Materials 21 | -10/Materials | Discovered new exit (range 12) 27 | -10/Materials | Entered another Materials area 27 | -9/Materials | Evolved 2 slots: Propulsion x2 79 | -9/Materials | Discovered new exit (range 9) 84 | -9/Materials | Entered Storage 144 | -9/Storage | Core integrity fell below 50% 144 | -9/Storage | Discovered new exit (range 16) 152 | -9/Storage | Entered Materials 152 | -8/Materials | Evolved 2 slots: Power x1, Propulsion x1 161 | -8/Materials | Identified exit to Factory 230 | -8/Materials | Entered Factory 230 | -7/Factory | Evolved 2 slots: Propulsion x1, Utility x1 247 | -7/Factory | Discovered new exit (range 11) 252 | -7/Factory | Entered another Factory area 252 | -6/Factory | Evolved 2 slots: Propulsion x2 314 | -6/Factory | Build established: Mutant 326 | -6/Factory | Identified exit to Garrison 326 | -6/Factory | Entered Garrison 344 | -6/Garrison | Spotted B-75 Beast 350 | -6/Garrison | Triggered checkpoint 365 | -6/Garrison | Discovered new exit (range 12) 370 | -6/Garrison | Entered Factory 392 | -6/Factory | Core integrity fell below 50% 402 | -6/Factory | Core integrity fell below 20% 423 | -6/Factory | Destroyed by Y-54 Guardian with Flak Gun Last Messages --------------- 00395_ U-05 Engineer destroyed. 00396_ Acquired 15 matter. 00397_ C-17 Slicer knocked back. 00397_ K-01 Serf destroyed. 00397_ K-01 Serf knocked back. 00397_ U-05 Engineer destroyed. 00398_ K-01 Serf collects debris. 00401_ Penetrated by Slug. 00401_ U-05 Engineer lays Concrete. 00401_ Machine Analyzer severed. 00402_ K-01 Serf collects debris. 00402_ U-05 Engineer lays Concrete. 00403_ Acquired Surge Thruster. 00403_ Surge Thruster destroyed. 00404_ K-01 Serf collects debris. 00404_ U-05 Engineer lays Concrete. 00412_ C-17 Slicer destroyed. 00414_ Acquired 5 matter. 00415_ Acquired Surge Thruster. 00415_ K-01 Serf collects debris. Map ----- +----------------------------------------------------+ | ?????????????# ???????# """ #???????# | | ?????????????# ???????# """ #???????# | | ?????????????###########?????????# ?? ????????? | | ?????????????????????????????????? ???????????? | | ?????????????????????????????????? ???????????? | | ?????????????????????????????????? "Y"???????????? | | ???????????????????????????????????"""?????####??? | | ????????????????????????????????????########T #### | | ????????????????????????????????????# | | ????????????????????????????????????# | | ????????????????????????????????????# * | | ????????????????????????????????????# % * | | ????????????????????????????????????# =%/ | | ????????????????????????????????????# ###+## | | ????????????????????????#+???####+### # | | ????????????????????????# #### # | | ????????????????????##### # " | | ??????????????????? # T | | ?????????????????????# k # " ! | | ?????????????????????# """ # | | ???????????? ???????# """ T" ####+########## | | ??????????? ######k """ """ #?????????????? | | ??????????? ! """ #?????????????? | | ?????????? c +?????????????? | | ?????????? Y /!/ #?????????????? | | ?????????? @// #?????????????? | | ?????????? // #?????????????? | | ?????????? ###+################?????????????? | | ?????????????????????????????????????????????????? | | ?????????????????????????????????????????????????? | | ?????????????????????????????????????????????????? | | ?????????????????????????????????????????????????? | | ?????????????????????????????????????????????????? | | ?????????????????????????????????????????????????? | | ?????????????????????????????????????????????????? | | ?????????????????????????????????????????????????? | | ?????????????????????????????????????????????????? | | ?????????????????????????????????????????????????? | | ?????????????????????????????????????????????????? | | ?????????????????????????????????????????????????? | | ?????????????????????????????????????????????????? | | ?????????????????????????????????????????????????? | | ?????????????????????????????????????????????????? | | ?????????????????????????????????????????????????? | | ?????????????????????????????????????????????????? | | ?????????????????????????????????????????????????? | | ?????????????????????????????????????????????????? | | ??????"""????????????????????????????????????????? | | ??????"Y?????????????????????????????????????????? | | ??????"""??"""???????????????????????????????????? | +----------------------------------------------------+ Best States ------------- Heat Dissipation 37 Energy Generation 5 Energy Capacity 100 Matter Stores 300 Matter Capacity 300 Sight Range 16 Terrain Scan Density 10 Evasion (%) 63 Recoil Reduction 1 Offensive Hacking 10 Item Schematics ----------------- None Robot Schematics ------------------ None Fabricated ------------ Nothing Alien Tech Used ----------------- None Achievements -------------- None Challenges ------------ None Game ------ Seed MediumLobotomyMagmablaster Manual? 0 Play Time 00:10:12 Cumulative 344.3 hours Start 2022.05.04 @ 16:03:55 End 2022.05.04 @ 17:28:47 Sessions 3 Manual Loads 0 Difficulty Rogue Special Mode None Game No. 126 Rogue 126 Adventurer 0 Explorer 0 Win Type - Total 7 Types 3/1/0/1/2/0/0/0/0 Lore% 66 Gallery% 79 Achievement% 69 Wizard Run 0 Options --------- ASCII 0 Keyboard 0 Movement Mouse Keybinds 0 Fullscreen 0 Font 28/SmallcapsGlow Map View 72x54 Tactical HUD 1 Map Filters NONE Filters NONE Steam 1 RUN: 705fa48b-58ff-4608-b8f8-af3185e4ed46